[Event "DPEM German Cup 2024"]
[Site "Bad Wildungen"]
[Date "2024.08.01"]
[Round "2.2"]
[White "Schroeder, Torsten"]
[Black "Khachatryan, Taron"]
[Result "0-1"]
[Annotator "RC"]
[ECO "E05"]
[WhiteElo "2153"]
[BlackElo "2221"]
[PlyCount "90"]
[EventDate "2024.07.31"]
[EventCountry "GER"]
[SourceTitle "playchess.com"]
[Source "ChessBase"]
[SourceQuality "1"]
[TimeControl "40/5400+30:900+30"]

1. d4 {[%emt 0:00:03]} Nf6 {[%emt 0:00:10]} 2. Nf3 {[%emt 0:00:13]} e6 {[%emt 0:00:20]} 3. g3 {[%emt 0:00:27]} d5 {[%emt 0:00:41]} 4. Bg2 {[%emt 0:00:03]} Be7 {[%emt 0:00:08]} 5. O-O {[%emt 0:00:05]} O-O {[%emt 0:00:05]} 6. c4 {[%emt 0:00:26]} dxc4 {[%emt 0:00:42]} 7. Qc2 {[%emt 0:01:40]} a6 {[%emt 0:00:47]} 8. Qxc4 {[%emt 0:00:31]} b5 {[%emt 0:00:39]} 9. Qc2 {[%emt 0:00:03]} Bb7 {[%emt 0:00:18]} 10. Bf4 {[%emt 0:00:33]} Nc6 {[%emt 0:01:27]} 11. Nc3 {[%emt 0:08:32]} Rc8 {[%emt 0:11:15]} 12. Rfd1 {[%emt 0:03:53]} Nb4 {[%emt 0:01:32]} 13. Qc1 {[%emt 0:04:19]} Nbd5 {[%emt 0:03:06]} 14. Ne5 {[%emt 0:32:51]} c5 {[%emt 0:02:45]} 15. dxc5 {[%emt 0:01:41]} Bxc5 {[%emt 0:04:35]} 16. Nxd5 {[%emt 0:08:03]} Nxd5 {[%emt 0:24:39]} 17. Qd2 {[%emt 0:01:13]} Qe7 {[%emt 0:02:41]} 18. Nd3 {[%emt 0:05:07]} Bb6 {[%emt 0:02:06]} 19. Rac1 {[%emt 0:00:31]} Rcd8 {[%emt 0:00:51]} 20. e4 {[%emt 0:13:01]} Nxf4 {[%emt 0:00:53]} 21. Qxf4 {[%emt 0:00:03]} Rd4 {[%emt 0:03:05]} 22. Ne5 {[%emt 0:04:43]} Rxd1+ {[%emt 0:03:02]} 23. Rxd1 {[%emt 0:00:01]} Bc7 {[%emt 0:00:12]} 24. Rd7 {[%emt 0:00:48]} Qxd7 {[%emt 0:00:32]} 25. Nxd7 {[%emt 0:00:11]} Bxf4 {[%emt 0:00:04]} 26. Nxf8 {[%emt 0:00:07]} Be5 {[%emt 0:08:32]} 27. Nd7 {[%emt 0:00:03]} Bxb2 {[%emt 0:01:28]} 28. Nc5 {[%emt 0:00:02]} Bc8 {[%emt 0:00:14]} 29. Kf1 {[%emt 0:04:23]} Kf8 {[%emt 0:00:50]} 30. Nd3 {[%emt 0:03:47]} Bc3 {[%emt 0:00:49]} 31. e5 {[%emt 0:00:29]} Ke7 {[%emt 0:02:25]} 32. f4 {[%emt 0:00:03]} a5 {[%emt 0:00:48]} 33. Ke2 {[%emt 0:01:46]} b4 {[%emt 0:01:28]} 34. Nc5 {[%emt 0:00:21]} Bd4 {[%emt 0:00:21]} 35. Nb7 {[%emt 0:00:05]} a4 {[%emt 0:00:44]} 36. Kd3 {[%emt 0:00:27]} b3 {[%emt 0:02:18]} 37. a3 {[%emt 0:01:01]} Bg1 {[%emt 0:01:16]} 38. h3 {[%emt 0:07:55]} Bh2 39. Nc5 {[%emt 0:00:00]} Bd7 {[%emt 0:04:58]} 40. Kc4 {[%emt 0:00:00]} Bxg3 {[%emt 0:01:04]} 41. Nd3 {[%emt 0:15:48]} Kd8 {[%emt 0:17:28]} 42. Be4 {[%emt 0:00:14]} h6 {[%emt 0:00:36]} 43. Kc5 {[%emt 0:00:00]} Kc7 {[%emt 0:00:00]} 44. Bf3 {[%emt 0:00:00]} Bh4 {[%emt 0:00:00]} 45. Kd4 {[%emt 0:02:28]} Be7 0-1

[Event "DPEM German Cup 2024"]
[Site "Bad Wildungen"]
[Date "2024.08.01"]
[Round "2.3"]
[White "Cofmann, Veaceslav"]
[Black "Skabs, Denis"]
[Result "1/2-1/2"]
[Annotator "RC"]
[ECO "D38"]
[WhiteElo "2245"]
[BlackElo "2096"]
[PlyCount "29"]
[EventDate "2024.07.31"]
[EventCountry "GER"]
[SourceTitle "playchess.com"]
[Source "ChessBase"]
[SourceQuality "1"]
[TimeControl "40/5400+30:900+30"]

1. d4 {[%emt 0:00:04]} Nf6 {[%emt 0:00:05]} 2. c4 {[%emt 0:00:12]} e6 {[%emt 0:00:04]} 3. Nc3 {[%emt 0:00:25]} Bb4 {[%emt 0:00:06]} 4. Nf3 {[%emt 0:00:30]} d5 {[%emt 0:00:05]} 5. cxd5 {[%emt 0:00:17]} exd5 {[%emt 0:00:05]} 6. Bg5 {[%emt 0:00:24]} h6 {[%emt 0:00:36]} 7. Bxf6 {[%emt 0:01:28]} Qxf6 {[%emt 0:00:07]} 8. Qb3 {[%emt 0:01:44]} c5 {[%emt 0:02:43]} 9. e3 {[%emt 0:01:40]} Nc6 {[%emt 0:03:55]} 10. Bb5 {[%emt 0:02:47]} O-O {[%emt 0:01:18]} 11. O-O {[%emt 0:01:20]} c4 {[%emt 0:02:08]} 12. Qa4 {[%emt 0:01:08]} Bxc3 {[%emt 0:02:42]} 13. bxc3 {[%emt 0:00:13]} Bg4 {[%emt 0:15:08]} 14. Bxc6 {[%emt 0:04:33]} Bxf3 {[%emt 0:06:39]} 15. Bd7 {[%emt 0:01:37]} 1/2-1/2

[Event "DPEM German Cup 2024"]
[Site "Bad Wildungen"]
[Date "2024.08.01"]
[Round "2.4"]
[White "Matthaei, Jakob"]
[Black "Namyslo, Holger"]
[Result "1/2-1/2"]
[Annotator "RC"]
[ECO "A14"]
[WhiteElo "2055"]
[BlackElo "2131"]
[PlyCount "172"]
[EventDate "2024.07.31"]
[EventCountry "GER"]
[SourceTitle "playchess.com"]
[Source "ChessBase"]
[SourceQuality "1"]
[TimeControl "40/5400+30:900+30"]

1. c4 {[%emt 0:09:30]} e6 {[%emt 0:00:21]} 2. g3 {[%emt 0:00:16]} d5 {[%emt 0:00:16]} 3. Bg2 {[%emt 0:00:37]} Nf6 {[%emt 0:00:19]} 4. Nf3 {[%emt 0:00:05]} Be7 {[%emt 0:00:40]} 5. O-O {[%emt 0:00:05]} O-O {[%emt 0:00:07]} 6. b3 {[%emt 0:00:02]} d4 {[%emt 0:03:43]} 7. e3 {[%emt 0:00:34]} c5 {[%emt 0:01:06]} 8. Bb2 {[%emt 0:00:37]} Nc6 {[%emt 0:00:19]} 9. exd4 {[%emt 0:00:08]} cxd4 {[%emt 0:00:37]} 10. Re1 {[%emt 0:00:09]} Re8 {[%emt 0:01:02]} 11. d3 {[%emt 0:02:21]} a5 {[%emt 0:02:14]} 12. Na3 {[%emt 0:04:42]} Bb4 {[%emt 0:02:40]} 13. Re2 {[%emt 0:01:54]} e5 {[%emt 0:01:49]} 14. Nc2 {[%emt 0:01:06]} Bc5 {[%emt 0:00:33]} 15. Ba3 {[%emt 0:17:00]} Qd6 {[%emt 0:03:17]} 16. Bxc5 {[%emt 0:00:14]} Qxc5 {[%emt 0:00:04]} 17. Qd2 {[%emt 0:02:48]} h6 {[%emt 0:01:51]} 18. Rae1 {[%emt 0:05:20]} Bf5 {[%emt 0:08:16]} 19. Nh4 {[%emt 0:06:52]} Bg4 {[%emt 0:02:54]} 20. Bf3 {[%emt 0:06:04]} Bxf3 {[%emt 0:03:38]} 21. Nxf3 {[%emt 0:00:05]} b5 {[%emt 0:01:12]} 22. cxb5 {[%emt 0:08:07]} Qxb5 {[%emt 0:00:17]} 23. Na3 {[%emt 0:04:24]} Qd5 {[%emt 0:03:11]} 24. Nh4 {[%emt 0:00:52]} e4 {[%emt 0:07:10]} 25. Nc4 {[%emt 0:01:43]} exd3 {[%emt 0:13:19]} 26. Qxd3 {[%emt 0:01:23]} Rxe2 {[%emt 0:08:59]} 27. Rxe2 {[%emt 0:01:54]} Rd8 {[%emt 0:00:33]} 28. Nf5 {[%emt 0:12:42]} Qc5 {[%emt 0:06:36]} 29. Qf3 {[%emt 0:02:08]} d3 {[%emt 0:02:07]} 30. Rd2 {[%emt 0:01:17]} Nd4 {[%emt 0:07:41]} 31. Nxd4 {[%emt 0:00:17]} Qxd4 {[%emt 0:00:07]} 32. Nb2 {[%emt 0:02:38]} Qc3 {[%emt 0:00:46]} 33. Rxd3 {[%emt 0:01:38]} Rxd3 {[%emt 0:00:41]} 34. Nxd3 {[%emt 0:00:05]} Qa1+ {[%emt 0:00:10]} 35. Kg2 {[%emt 0:00:05]} Qxa2 {[%emt 0:00:09]} 36. Ne5 {[%emt 0:01:49]} Qc2 {[%emt 0:06:29]} 37. Qb7 {[%emt 0:02:25]} Kh7 {[%emt 0:02:25]} 38. Qxf7 {[%emt 0:03:40]} Qe4+ {[%emt 0:00:27]} 39. Nf3 {[%emt 0:00:05]} a4 {[%emt 0:00:57]} 40. bxa4 {[%emt 0:00:39]} Qxa4 {[%emt 0:00:07]} 41. Qe6 {[%emt 0:17:04]} Qa8 {[%emt 0:18:35]} 42. Qf5+ {[%emt 0:00:00]} Kh8 {[%emt 0:00:00]} 43. h4 {[%emt 0:00:00]} Ne4 {[%emt 0:00:00]} 44. g4 {[%emt 0:00:00]} Nd2 {[%emt 0:00:00]} 45. g5 {[%emt 0:00:00]} hxg5 {[%emt 0:00:00]} 46. hxg5 {[%emt 0:00:00]} Ne4 {[%emt 0:00:00]} 47. g6 {[%emt 0:00:00]} Nf6 {[%emt 0:00:00]} 48. Kg1 {[%emt 0:00:13]} Qe4 {[%emt 0:03:15]} 49. Qh3+ {[%emt 0:01:41]} Kg8 {[%emt 0:00:15]} 50. Qc8+ {[%emt 0:00:04]} Ne8 {[%emt 0:01:08]} 51. Nh4 {[%emt 0:02:10]} Kf8 {[%emt 0:05:33]} 52. Qf5+ {[%emt 0:00:43]} Nf6 {[%emt 0:00:08]} 53. Qxe4 {[%emt 0:00:07]} Nxe4 {[%emt 0:00:01]} 54. Nf5 {[%emt 0:00:18]} Nc5 {[%emt 0:03:15]} 55. Kg2 {[%emt 0:00:24]} Nd7 {[%emt 0:00:07]} 56. f4 {[%emt 0:00:20]} Nf6 {[%emt 0:00:14]} 57. Kf3 {[%emt 0:00:10]} Kg8 {[%emt 0:00:28]} 58. Ke3 {[%emt 0:00:18]} Nd7 {[%emt 0:00:18]} 59. Kd4 {[%emt 0:00:26]} Nf8 {[%emt 0:00:49]} 60. Ne7+ {[%emt 0:00:15]} Kh8 {[%emt 0:00:04]} 61. Kd5 {[%emt 0:00:37]} Ne6 {[%emt 0:00:28]} 62. f5 {[%emt 0:00:34]} Nf4+ {[%emt 0:01:01]} 63. Ke5 {[%emt 0:00:50]} Nh5 {[%emt 0:00:12]} 64. Ke6 {[%emt 0:00:29]} Nf6 {[%emt 0:00:40]} 65. Nd5 {[%emt 0:00:26]} Ng4 {[%emt 0:00:37]} 66. Ke7 {[%emt 0:01:29]} Kg8 {[%emt 0:00:14]} 67. Nf4 {[%emt 0:00:19]} Ne3 {[%emt 0:00:23]} 68. Ke6 {[%emt 0:00:13]} Ng4 {[%emt 0:00:11]} 69. Nd5 {[%emt 0:00:16]} Kf8 {[%emt 0:00:21]} 70. Ne7 {[%emt 0:00:44]} Nf6 {[%emt 0:00:11]} 71. Nd5 {[%emt 0:00:26]} Ng4 {[%emt 0:00:03]} 72. Nf4 {[%emt 0:01:16]} Ne3 {[%emt 0:00:14]} 73. Nd3 {[%emt 0:00:43]} Ng4 {[%emt 0:00:21]} 74. Nc5 {[%emt 0:00:16]} Ne3 {[%emt 0:02:10]} 75. Nd7+ {[%emt 0:00:41]} Kg8 {[%emt 0:00:01]} 76. Nb6 {[%emt 0:00:18]} Kf8 {[%emt 0:00:10]} 77. Nd5 {[%emt 0:00:14]} Ng4 {[%emt 0:00:04]} 78. Ne7 {[%emt 0:00:13]} Nf6 {[%emt 0:00:14]} 79. Nc6 {[%emt 0:00:10]} Ng4 {[%emt 0:00:11]} 80. Ne5 {[%emt 0:00:09]} Ne3 {[%emt 0:00:11]} 81. Nd7+ {[%emt 0:00:26]} Kg8 {[%emt 0:00:12]} 82. f6 {[%emt 0:01:21]} gxf6 {[%emt 0:00:07]} 83. Kxf6 {[%emt 0:00:06]} Nd5+ {[%emt 0:00:17]} 84. Kg5 {[%emt 0:00:12]} Kg7 {[%emt 0:01:42]} 85. Nc5 {[%emt 0:00:08]} Nf4 {[%emt 0:00:17]} 86. Kxf4 {[%emt 0:00:03]} Kxg6 {[%emt 0:00:02]} 1/2-1/2

[Event "DPEM German Cup 2024"]
[Site "Bad Wildungen"]
[Date "2024.08.01"]
[Round "2.5"]
[White "Buettner, Thomas"]
[Black "Colpe, Malte"]
[Result "0-1"]
[Annotator "RC"]
[ECO "C02"]
[WhiteElo "1979"]
[BlackElo "2377"]
[PlyCount "50"]
[EventDate "2024.07.31"]
[EventCountry "GER"]
[SourceTitle "playchess.com"]
[Source "ChessBase"]
[SourceQuality "1"]
[TimeControl "40/5400+30:900+30"]

1. e4 {[%emt 0:00:04]} e6 {[%emt 0:00:40]} 2. d4 {[%emt 0:00:03]} d5 {[%emt 0:00:07]} 3. e5 {[%emt 0:00:03]} c5 {[%emt 0:00:07]} 4. c3 {[%emt 0:00:02]} Nc6 {[%emt 0:00:06]} 5. Nf3 {[%emt 0:00:02]} Qb6 {[%emt 0:00:09]} 6. Bd3 {[%emt 0:00:03]} cxd4 {[%emt 0:00:53]} 7. cxd4 {[%emt 0:00:05]} Bd7 {[%emt 0:00:37]} 8. O-O {[%emt 0:00:04]} Nxd4 {[%emt 0:01:15]} 9. Nbd2 {[%emt 0:00:04]} Nxf3+ {[%emt 0:00:32]} 10. Nxf3 {[%emt 0:00:05]} Bb5 {[%emt 0:02:01]} 11. Bxb5+ Qxb5 {[%emt 0:00:08]} 12. Nd4 {[%emt 0:00:14]} Qd7 {[%emt 0:00:23]} 13. Be3 {[%emt 0:00:15]} Ne7 {[%emt 0:04:20]} 14. Rc1 {[%emt 0:01:20]} Nc6 {[%emt 0:09:07]} 15. Nb5 {[%emt 0:02:42]} a6 {[%emt 0:09:08]} 16. Nd6+ Bxd6 {[%emt 0:00:06]} 17. exd6 {[%emt 0:00:06]} O-O {[%emt 0:03:24]} 18. Bc5 {[%emt 0:00:33]} Rfc8 {[%emt 0:02:36]} 19. Re1 {[%emt 0:01:22]} Rab8 {[%emt 0:05:44]} 20. Qg4 {[%emt 0:03:00]} b6 {[%emt 0:02:17]} 21. Ba3 {[%emt 0:00:08]} Ne5 {[%emt 0:13:25]} 22. Rc7 Qxc7 {[%emt 0:06:45]} 23. dxc7 {[%emt 0:12:02]} Nxg4 {[%emt 0:00:08]} 24. cxb8=Q {[%emt 0:00:18]} Rxb8 {[%emt 0:00:02]} 25. Rc1 {[%emt 0:00:06]} Nf6 {[%emt 0:05:13]} 0-1

[Event "DPEM German Cup 2024"]
[Site "Bad Wildungen"]
[Date "2024.08.01"]
[Round "2.6"]
[White "Koch, Yannick"]
[Black "Willim, Michael"]
[Result "0-1"]
[Annotator "RC"]
[ECO "D41"]
[WhiteElo "1991"]
[BlackElo "2083"]
[PlyCount "62"]
[EventDate "2024.07.31"]
[EventCountry "GER"]
[SourceTitle "playchess.com"]
[Source "ChessBase"]
[SourceQuality "1"]
[TimeControl "40/5400+30:900+30"]

1. d4 {[%emt 0:00:13]} Nf6 {[%emt 0:00:07]} 2. c4 {[%emt 0:00:16]} e6 {[%emt 0:00:16]} 3. Nc3 {[%emt 0:00:22]} d5 {[%emt 0:00:43]} 4. cxd5 Nxd5 {[%emt 0:00:07]} 5. e4 {[%emt 0:01:07]} Nxc3 6. bxc3 {[%emt 0:00:03]} c5 {[%emt 0:00:14]} 7. Nf3 {[%emt 0:01:18]} cxd4 8. cxd4 {[%emt 0:00:08]} Bb4+ {[%emt 0:00:14]} 9. Bd2 {[%emt 0:00:16]} Bxd2+ 10. Qxd2 {[%emt 0:00:06]} O-O {[%emt 0:00:17]} 11. Bc4 {[%emt 0:00:23]} Nd7 {[%emt 0:00:10]} 12. O-O {[%emt 0:00:24]} b6 {[%emt 0:00:32]} 13. Rad1 {[%emt 0:02:54]} Bb7 {[%emt 0:00:36]} 14. Rfe1 {[%emt 0:00:10]} Rc8 {[%emt 0:00:05]} 15. Bb3 {[%emt 0:01:01]} Re8 {[%emt 0:06:24]} 16. h3 {[%emt 0:09:27]} Nf6 {[%emt 0:05:52]} 17. d5 exd5 {[%emt 0:01:43]} 18. exd5 {[%emt 0:02:54]} Rxe1+ 19. Nxe1 {[%emt 0:01:17]} Qd6 {[%emt 0:07:36]} 20. Nc2 {[%emt 0:04:13]} Ne4 {[%emt 0:21:54]} 21. Qd4 {[%emt 0:08:07]} Nc3 {[%emt 0:01:50]} 22. Re1 {[%emt 0:01:52]} h6 {[%emt 0:02:52]} 23. Ne3 {[%emt 0:01:11]} Qc5 {[%emt 0:11:40]} 24. Qg4 {[%emt 0:03:04]} Re8 {[%emt 0:03:37]} 25. Kh2 {[%emt 0:08:40]} Qd6+ {[%emt 0:04:37]} 26. g3 {[%emt 0:00:55]} Qf6 {[%emt 0:00:16]} 27. f3 {[%emt 0:09:11]} Nxd5 {[%emt 0:05:44]} 28. Ng2 {[%emt 0:11:51]} Rxe1 {[%emt 0:04:05]} 29. Nxe1 {[%emt 0:00:05]} Ne3 {[%emt 0:02:03]} 30. Qa4 {[%emt 0:02:42]} Bc6 {[%emt 0:07:25]} 31. Qxa7 {[%emt 0:03:35]} Bxf3 {[%emt 0:03:39]} 0-1

[Event "DPEM German Cup 2024"]
[Site "Bad Wildungen"]
[Date "2024.08.01"]
[Round "2.7"]
[White "Ehmann, Thilo"]
[Black "Hinrichs, Paul"]
[Result "1/2-1/2"]
[Annotator "RC"]
[ECO "C86"]
[WhiteElo "2341"]
[BlackElo "2262"]
[PlyCount "33"]
[EventDate "2024.07.31"]
[EventCountry "GER"]
[SourceTitle "playchess.com"]
[Source "ChessBase"]
[SourceQuality "1"]
[TimeControl "40/5400+30:900+30"]

1. e4 {[%emt 0:00:01]} e5 {[%emt 0:00:03]} 2. Nf3 {[%emt 0:00:03]} Nc6 {[%emt 0:00:04]} 3. Bb5 {[%emt 0:00:03]} a6 {[%emt 0:00:06]} 4. Ba4 {[%emt 0:00:03]} Nf6 {[%emt 0:00:04]} 5. O-O {[%emt 0:00:13]} Be7 {[%emt 0:00:03]} 6. Qe2 {[%emt 0:00:08]} b5 {[%emt 0:01:50]} 7. Bb3 {[%emt 0:03:16]} d6 {[%emt 0:01:25]} 8. a4 {[%emt 0:00:44]} Rb8 {[%emt 0:08:04]} 9. axb5 axb5 {[%emt 0:00:06]} 10. Nc3 {[%emt 0:07:33]} Bg4 {[%emt 0:08:12]} 11. Nxb5 {[%emt 0:01:11]} Bxf3 12. gxf3 {[%emt 0:01:01]} O-O {[%emt 0:08:52]} 13. c3 {[%emt 0:05:35]} Qd7 {[%emt 0:04:14]} 14. d4 {[%emt 0:02:44]} Qh3 {[%emt 0:07:22]} 15. d5 {[%emt 0:05:55]} Rxb5 16. Qxb5 {[%emt 0:02:02]} Nxe4 17. fxe4 1/2-1/2

[Event "DPEM German Cup 2024"]
[Site "Bad Wildungen"]
[Date "2024.08.02"]
[Round "3.2"]
[White "Khachatryan, Taron"]
[Black "Matthaei, Jakob"]
[Result "1/2-1/2"]
[Annotator "RC"]
[ECO "E05"]
[WhiteElo "2221"]
[BlackElo "2055"]
[PlyCount "71"]
[EventDate "2024.07.31"]
[EventCountry "GER"]
[SourceTitle "playchess.com"]
[Source "ChessBase"]
[SourceQuality "1"]
[TimeControl "40/5400+30:900+30"]

1. Nf3 {[%emt 0:00:30]} d5 {[%emt 0:00:05]} 2. c4 {[%emt 0:00:29]} e6 {[%emt 0:00:05]} 3. g3 {[%emt 0:00:36]} Nf6 {[%emt 0:00:04]} 4. Bg2 {[%emt 0:00:07]} Be7 {[%emt 0:00:05]} 5. O-O {[%emt 0:00:27]} O-O {[%emt 0:00:04]} 6. d4 {[%emt 0:00:55]} dxc4 {[%emt 0:00:04]} 7. Qc2 {[%emt 0:00:18]} a6 {[%emt 0:00:05]} 8. a4 {[%emt 0:00:44]} Bd7 {[%emt 0:00:04]} 9. Qxc4 {[%emt 0:00:43]} Bc6 {[%emt 0:00:04]} 10. Nc3 {[%emt 0:03:35]} b5 {[%emt 0:00:29]} 11. Qd3 {[%emt 0:01:55]} b4 {[%emt 0:00:12]} 12. Nb1 {[%emt 0:00:14]} Be4 {[%emt 0:01:10]} 13. Qd1 {[%emt 0:01:19]} c5 {[%emt 0:00:30]} 14. Nbd2 {[%emt 0:02:10]} Bd5 {[%emt 0:01:09]} 15. dxc5 {[%emt 0:01:13]} Nbd7 {[%emt 0:01:12]} 16. c6 {[%emt 0:00:48]} Bxc6 {[%emt 0:00:43]} 17. Nb3 {[%emt 0:01:35]} Rc8 {[%emt 0:04:06]} 18. Be3 {[%emt 0:04:08]} Bd5 {[%emt 0:02:59]} 19. a5 {[%emt 0:05:30]} Qc7 {[%emt 0:05:30]} 20. Nfd4 {[%emt 0:11:39]} Bxg2 {[%emt 0:03:41]} 21. Kxg2 {[%emt 0:00:05]} Rfd8 {[%emt 0:00:54]} 22. Rc1 {[%emt 0:03:27]} Qb7+ {[%emt 0:00:17]} 23. Nf3 {[%emt 0:02:35]} Ng4 {[%emt 0:12:25]} 24. Bd4 {[%emt 0:04:42]} Nc5 {[%emt 0:16:41]} 25. h3 {[%emt 0:02:28]} Ne5 {[%emt 0:01:24]} 26. Nxc5 {[%emt 0:06:25]} Bxc5 {[%emt 0:00:31]} 27. e3 {[%emt 0:45:23]} Bxd4 {[%emt 0:25:58]} 28. Rxc8 {[%emt 0:00:00]} Rxc8 {[%emt 0:00:10]} 29. exd4 {[%emt 0:00:00]} Nc4 {[%emt 0:01:02]} 30. Qe2 {[%emt 0:00:00]} Nxa5 {[%emt 0:01:59]} 31. Ra1 {[%emt 0:02:00]} Nc4 32. Rc1 {[%emt 0:00:00]} Nb6 {[%emt 0:05:27]} 33. Rxc8+ {[%emt 0:00:00]} Qxc8 {[%emt 0:01:43]} 34. Ne5 {[%emt 0:00:00]} f6 {[%emt 0:04:38]} 35. Nd3 {[%emt 0:00:00]} Qc4 {[%emt 0:00:21]} 36. Kg1 {[%emt 0:00:00]} 1/2-1/2

[Event "DPEM German Cup 2024"]
[Site "Bad Wildungen"]
[Date "2024.08.02"]
[Round "3.3"]
[White "Cofmann, Veaceslav"]
[Black "Ehmann, Thilo"]
[Result "1/2-1/2"]
[Annotator "ChessBase"]
[ECO "A70"]
[WhiteElo "2245"]
[BlackElo "2341"]
[PlyCount "152"]
[EventDate "2024.07.31"]
[EventCountry "GER"]
[SourceTitle "playchess.com"]
[Source "ChessBase"]
[SourceQuality "1"]
[TimeControl "40/5400+30:900+30"]

1. d4 {[%emt 0:00:05]} Nf6 {[%emt 0:00:03]} 2. c4 {[%emt 0:00:09]} c5 {[%emt 0:00:02]} 3. d5 {[%emt 0:00:09]} e6 {[%emt 0:00:04]} 4. Nc3 {[%emt 0:00:22]} exd5 {[%emt 0:04:06]} 5. cxd5 {[%emt 0:00:06]} d6 {[%emt 0:00:02]} 6. e4 {[%emt 0:00:09]} g6 {[%emt 0:00:07]} 7. h3 {[%emt 0:00:06]} Bg7 {[%emt 0:00:06]} 8. Nf3 {[%emt 0:00:05]} O-O {[%emt 0:00:05]} 9. Bd3 {[%emt 0:00:07]} a6 {[%emt 0:02:48]} 10. a4 {[%emt 0:01:00]} Nbd7 {[%emt 0:00:19]} 11. Be3 {[%emt 0:00:57]} Re8 {[%emt 0:02:59]} 12. Nd2 {[%emt 0:01:45]} Nh5 {[%emt 0:07:11]} 13. Be2 {[%emt 0:06:42]} Bd4 {[%emt 0:00:49]} 14. Nc4 {[%emt 0:04:59]} Bxe3 {[%emt 0:04:03]} 15. Nxe3 {[%emt 0:00:08]} Nf4 {[%emt 0:01:30]} 16. g3 {[%emt 0:02:10]} Nxe2 {[%emt 0:00:49]} 17. Qxe2 {[%emt 0:00:01]} Rb8 {[%emt 0:02:45]} 18. a5 {[%emt 0:02:14]} b5 {[%emt 0:01:45]} 19. axb6 {[%emt 0:00:25]} Nxb6 {[%emt 0:00:49]} 20. h4 {[%emt 0:02:20]} f5 {[%emt 0:01:48]} 21. h5 {[%emt 0:05:32]} fxe4 {[%emt 0:02:18]} 22. hxg6 {[%emt 0:00:13]} hxg6 {[%emt 0:00:06]} 23. Rh4 {[%emt 0:01:37]} Nd7 {[%emt 0:04:28]} 24. Nxe4 {[%emt 0:06:18]} Nf6 {[%emt 0:03:11]} 25. Nc3 {[%emt 0:02:34]} Rb4 {[%emt 0:02:50]} 26. Ra4 {[%emt 0:09:06]} a5 {[%emt 0:02:03]} 27. Kf1 {[%emt 0:07:00]} Kg7 {[%emt 0:06:55]} 28. Qc2 {[%emt 0:05:59]} Bd7 {[%emt 0:13:15]} 29. Raxb4 {[%emt 0:00:57]} axb4 {[%emt 0:01:47]} 30. Ne4 {[%emt 0:02:02]} Nxe4 {[%emt 0:01:26]} 31. Rxe4 {[%emt 0:00:06]} Rf8 {[%emt 0:07:58]} 32. Rh4 {[%emt 0:02:54]} Qg5 {[%emt 0:01:54]} 33. Kg2 {[%emt 0:00:39]} Re8 {[%emt 0:01:36]} 34. Qd3 {[%emt 0:01:50]} Qf6 {[%emt 0:04:37]} 35. b3 {[%emt 0:01:25]} Bf5 {[%emt 0:03:05]} 36. Qa6 {[%emt 0:08:04]} Be4+ {[%emt 0:03:53]} 37. Kg1 {[%emt 0:03:06]} g5 {[%emt 0:00:48]} 38. Rh2 {[%emt 0:01:19]} Re7 {[%emt 0:09:24]} 39. Qa8 {[%emt 0:00:24]} Qf8 {[%emt 0:01:31]} 40. Qa1+ {[%emt 0:01:08]} Qf6 {[%emt 0:00:31]} 41. Qa8 {[%emt 0:15:11]} Bh7 {[%emt 0:16:17]} 42. Qa6 {[%emt 0:05:15]} Rf7 {[%emt 0:00:00]} 43. Qa8 {[%emt 0:00:00]} Qc3 {[%emt 0:00:00]} 44. Qd8 {[%emt 0:00:00]} Qe1+ {[%emt 0:00:00]} 45. Nf1 {[%emt 0:00:00]} Qe5 {[%emt 0:00:00]} 46. Ne3 {[%emt 0:02:08]} c4 {[%emt 0:00:00]} 47. Rh5 {[%emt 0:01:42]} Qa1+ {[%emt 0:02:37]} 48. Nf1 {[%emt 0:00:14]} Qf6 {[%emt 0:01:45]} 49. Rxg5+ {[%emt 0:02:34]} Bg6 {[%emt 0:00:33]} 50. Qxf6+ {[%emt 0:00:07]} Kxf6 {[%emt 0:00:04]} 51. Rg4 {[%emt 0:00:19]} Rc7 {[%emt 0:01:12]} 52. Rf4+ {[%emt 0:00:23]} Kg7 {[%emt 0:00:40]} 53. Ne3 {[%emt 0:05:40]} c3 {[%emt 0:00:16]} 54. Rxb4 {[%emt 0:00:05]} c2 {[%emt 0:00:04]} 55. Nxc2 {[%emt 0:00:03]} Bxc2 {[%emt 0:00:06]} 56. Rb6 {[%emt 0:02:00]} Rd7 {[%emt 0:00:05]} 57. f4 {[%emt 0:00:40]} Be4 {[%emt 0:00:28]} 58. Rb5 {[%emt 0:00:24]} Kf6 {[%emt 0:00:29]} 59. Kf2 {[%emt 0:00:08]} Kf5 {[%emt 0:00:31]} 60. Ke3 {[%emt 0:00:28]} Rg7 {[%emt 0:00:10]} 61. Kf2 {[%emt 0:00:43]} Rc7 {[%emt 0:00:49]} 62. Rb6 {[%emt 0:00:47]} Rd7 {[%emt 0:00:13]} 63. Rb5 {[%emt 0:00:51]} Bh1 {[%emt 0:00:00]} 64. Ke3 {[%emt 0:02:53]} Rg7 {[%emt 0:00:00]} 65. Kd4 {[%emt 0:01:27]} Rxg3 {[%emt 0:00:36]} 66. Rb8 {[%emt 0:00:10]} Kf6 {[%emt 0:00:59]} 67. Re8 {[%emt 0:00:23]} Rg6 {[%emt 0:02:29]} 68. b4 {[%emt 0:00:28]} Kf7 {[%emt 0:00:35]} 69. Re1 {[%emt 0:00:24]} Bf3 {[%emt 0:00:48]} 70. b5 {[%emt 0:01:44]} Rg2 {[%emt 0:01:24]} 71. Re3 {[%emt 0:01:02]} Rd2+ {[%emt 0:00:56]} 72. Kc3 {[%emt 0:00:11]} Rf2 {[%emt 0:00:27]} 73. Re6 {[%emt 0:00:23]} Bxd5 {[%emt 0:00:14]} 74. Rxd6 {[%emt 0:00:02]} Bg2 {[%emt 0:00:10]} 75. Rd4 {[%emt 0:00:42]} Re2 {[%emt 0:00:28]} 76. Kb4 {[%emt 0:00:13]} Ke7 {[%emt 0:02:19]} 1/2-1/2

[Event "DPEM German Cup 2024"]
[Site "Bad Wildungen"]
[Date "2024.08.02"]
[Round "3.4"]
[White "Colpe, Malte"]
[Black "Willim, Michael"]
[Result "1-0"]
[Annotator "RC"]
[ECO "D77"]
[WhiteElo "2377"]
[BlackElo "2083"]
[PlyCount "33"]
[EventDate "2024.07.31"]
[EventCountry "GER"]
[SourceTitle "playchess.com"]
[Source "ChessBase"]
[SourceQuality "1"]
[TimeControl "40/5400+30:900+30"]

1. Nf3 {[%emt 0:00:12]} d5 {[%emt 0:00:30]} 2. g3 {[%emt 0:00:24]} g6 {[%emt 0:00:35]} 3. Bg2 {[%emt 0:00:26]} Bg7 {[%emt 0:00:09]} 4. d4 {[%emt 0:00:36]} Nf6 {[%emt 0:05:02]} 5. c4 {[%emt 0:01:31]} dxc4 {[%emt 0:04:36]} 6. Na3 {[%emt 0:01:31]} c5 {[%emt 0:11:37]} 7. O-O {[%emt 0:04:37]} O-O {[%emt 0:03:06]} 8. dxc5 {[%emt 0:06:32]} Qc7 {[%emt 0:04:48]} 9. Nxc4 {[%emt 0:13:52]} Qxc5 {[%emt 0:02:19]} 10. Nfe5 {[%emt 0:05:56]} Ng4 {[%emt 0:04:20]} 11. Nxg4 {[%emt 0:02:49]} Qxc4 {[%emt 0:02:30]} 12. Nh6+ {[%emt 0:03:11]} Kh8 {[%emt 0:09:30]} 13. Bd5 {[%emt 0:02:21]} Qc7 {[%emt 0:00:04]} 14. Nxf7+ {[%emt 0:07:03]} Rxf7 {[%emt 0:06:18]} 15. Bxf7 {[%emt 0:00:08]} Bh3 {[%emt 0:00:06]} 16. Qa4 {[%emt 0:09:50]} Nc6 {[%emt 0:01:17]} 17. Qh4 {[%emt 0:01:46]} 1-0